bitfinex-derivatives/quotes_BNBF0:USTF0_20241231
["timestamp","ask_amount","ask_price","bid_price","bid_amount"]
[1735646870435,1.47745083,707.14,706.46,1.05434325]
[1735646872841,1.47745083,707.14,706.47,1.05434325]
[1735646873739,1.47745083,707.14,706.43,1.05434325]
[1735646875037,1.47745083,707.14,705.75,0.76901013]
[1735646875038,1.47745083,707.14,706.41,1.05434325]
[1735646876039,1.47745083,707.14,706.42,1.05434325]
[1735646877235,1.47745083,707.14,706.43,1.05434325]
[1735646880742,1.47745083,707.14,705.78,0.76901013]
[1735646880743,1.47745083,707.14,706.45,1.05434325]
[1735646881543,1.47745083,707.14,706.5,1.05434325]
[1735646883243,1.47745083,707.14,706.49,1.05434325]
[1735646883437,0.28278143,707.26,706.49,1.05434325]
[1735646883636,1.05909497,707.6,706.49,1.05434325]
[1735646883942,1.4770589,707.37,706.49,1.05434325]
[1735646884141,1.05909497,707.6,706.49,1.05434325]
[1735646884344,1.47681862,707.59,706.49,1.05434325]
[1735646884843,1.47681862,707.59,706.64,1.05434325]
[1735646885741,1.47681862,707.59,706.47,1.05434325]
[1735646887840,1.47681862,707.59,706.45,1.05434325]
[1735646889145,1.47681862,707.59,706.52,1.05434325]
[1735646890340,1.47681862,707.59,698.46,8.45216405]
[1735646890341,1.47681862,707.59,706.48,1.05434325]
[1735646891446,1.47681862,707.59,706.46,1.05434325]
[1735646892644,1.47681862,707.59,706.34,1.05434325]
[1735646894847,1.47681862,707.59,706.26,1.05434325]
[1735646895750,1.47681862,707.59,706.27,0.28317782]
[1735646902545,1.47681862,707.59,706.29,1.05434325]
[1735646902852,1.47681862,707.59,706.3,0.28316579]
[1735646904353,1.47681862,707.59,706.32,1.05434325]
[1735646905347,1.47681862,707.59,706.3,0.28316579]
[1735646909755,1.47681862,707.59,706.37,1.05434325]
[1735646910851,1.47681862,707.59,706.4,1.05434325]
[1735646911759,1.47681862,707.59,706.42,1.05434325]
[1735646913055,1.47681862,707.59,706.47,1.05434325]
[1735646914059,1.47681862,707.59,706.51,1.05434325]
[1735646915357,1.47681862,707.59,706.59,1.05434325]
[1735646916457,1.47681862,707.59,706.31,0.76789448]
[1735646916458,1.47681862,707.59,706.61,1.05434325]
[1735646917762,1.47681862,707.59,706.68,1.05434325]
[1735646918763,1.47681862,707.59,706.73,1.05434325]
[1735646919867,1.47681862,707.59,706.31,0.76789448]
[1735646919868,1.47681862,707.59,706.88,1.05434325]
[1735646922264,1.47681862,707.59,706.31,0.76789448]
[1735646922265,1.47681862,707.59,706.85,1.05434325]
[1735646923265,1.47681862,707.59,706.77,1.05434325]
[1735646924573,1.47681862,707.59,706.49,1.05434325]
[1735646924574,1.47681862,707.59,706.78,1.05434325]
[1735646925268,1.47681862,707.59,706.74,1.05434325]
[1735646926671,1.47681862,707.59,706.83,1.05434325]
[1735646927766,1.47681862,707.59,706.82,1.05434325]
[1735646928982,1.47681862,707.59,706.79,1.05434325]
[1735646929873,1.47681862,707.59,706.82,1.05434325]
[1735646931181,1.47681862,707.59,706.81,1.05434325]
[1735646933181,1.47681862,707.59,706.79,1.05434325]
[1735646934078,0.26018215,707.58,706.79,1.05434325]
[1735646934284,0.260195,707.57,706.79,1.05434325]
[1735646934482,0.260195,707.56,706.79,1.05434325]
[1735646934685,0.260195,707.55,706.79,1.05434325]
[1735646934883,0.260195,707.54,706.79,1.05434325]
[1735646935183,0.260195,707.53,706.79,1.05434325]
[1735646935382,0.260195,707.52,706.79,1.05434325]
[1735646935584,0.260195,707.51,706.79,1.05434325]
[1735646935781,0.260195,707.5,706.79,1.05434325]
[1735646935983,1.47682384,707.5,706.79,1.05434325]
[1735646936578,1.47682384,707.5,706.75,1.05434325]
[1735646938086,1.47682384,707.5,706.62,1.05434325]
[1735646939186,1.47682384,707.5,706.6,1.05434325]
[1735646940186,1.47682384,707.5,706.53,1.05434325]
[1735646941380,1.47682384,707.5,706.47,1.05434325]
[1735646942679,1.47682384,707.5,706.42,1.05434325]
[1735646944187,1.47682384,707.5,706.41,1.05434325]
[1735646945486,1.47682384,707.5,706.43,1.05434325]
[1735646946387,1.47682384,707.5,706.39,1.05434325]
[1735646946982,1.47682384,707.5,706.37,1.05434325]
[1735646947887,0.26025944,707.49,706.37,1.05434325]
[1735646948188,0.26025944,707.49,706.28,1.05434325]
[1735646949283,0.26025944,707.49,706.35,1.05434325]
[1735646949885,0.2602659,707.48,706.35,1.05434325]
[1735646950189,0.2602659,707.47,706.35,1.05434325]
[1735646950386,0.2602659,707.46,706.35,1.05434325]
[1735646950588,0.2602659,707.45,706.35,1.05434325]
[1735646950889,1.47682384,707.5,706.35,1.05434325]
[1735646951283,0.26024602,707.49,706.35,1.05434325]
[1735646951482,1.47682384,707.5,706.37,1.05434325]
[1735646951988,0.2602471,707.49,706.37,1.05434325]
[1735646952390,1.47682384,707.5,706.38,1.05434325]
[1735646952582,0.26024783,707.49,706.38,1.05434325]
[1735646953594,1.47682384,707.5,706.38,1.05434325]
[1735646954595,1.47682384,707.5,706.36,1.05434325]
[1735646954596,0.26025221,707.49,706.36,1.05434325]
[1735646955393,1.47682384,707.5,706.36,1.05434325]
[1735646956792,1.47682384,707.5,706.37,1.05434325]
[1735646957589,1.47682384,707.5,706.38,1.05434325]
[1735646958297,1.47682384,707.5,706.37,1.05434325]
[1735646959693,1.47682384,707.5,706.38,1.05434325]
[1735646960588,1.47682384,707.5,706.39,1.05434325]
[1735646961594,1.47682384,707.5,706.4,1.05434325]
[1735646962793,1.47682384,707.5,705.64,2.15261747]
[1735646962794,1.47682384,707.5,706.42,1.05434325]
[1735646963994,1.47682384,707.5,706.43,1.05434325]
[1735646965394,1.47682384,707.5,706.31,1.05434325]
[1735646966695,1.47682384,707.5,706.36,1.05434325]
[1735646967597,1.47682384,707.5,706.4,1.05434325]
[1735646968797,1.47682384,707.5,706.44,1.05434325]
[1735646970099,1.47682384,707.5,706.46,1.05434325]
[1735646971498,1.47682384,707.5,706.12,1.05434325]
[1735646971499,1.47682384,707.5,706.45,1.05434325]
[1735646972796,1.47682384,707.5,706.44,1.05434325]
[1735646974102,1.47682384,707.5,706.42,1.05434325]
[1735646975794,1.47682384,707.5,706.54,1.05434325]
[1735646976601,1.47682384,707.5,706.55,1.05434325]
[1735646977399,1.47682384,707.5,706.52,1.05434325]
[1735646978201,0.26028269,707.49,706.52,1.05434325]
[1735646978499,1.47682384,707.5,706.48,1.05434325]
[1735646978695,0.26029497,707.49,706.48,1.05434325]
[1735646978900,0.2826935,707.48,706.48,1.05434325]
[1735646979196,0.26029668,707.47,706.48,1.05434325]
[1735646979397,0.2826935,707.48,706.48,1.05434325]
[1735646979602,0.2826935,707.48,706.38,1.05434325]
[1735646980616,0.2826935,707.48,706.42,1.05434325]
[1735646981704,0.26029511,707.47,706.38,1.05434325]
[1735646981903,0.54299807,707.46,706.38,1.05434325]
[1735646982104,0.26029658,707.45,706.38,1.05434325]
[1735646982399,0.28270149,707.46,706.38,1.05434325]
[1735646982605,0.26029513,707.45,706.38,1.05434325]
[1735646982903,0.28270149,707.46,706.38,1.05434325]
[1735646983805,0.28270149,707.46,706.39,1.05434325]
[1735646984006,0.26027874,707.45,706.39,1.05434325]
[1735646984211,0.28270948,707.44,706.39,1.05434325]
[1735646984506,0.26028819,707.43,706.39,1.05434325]
[1735646984709,0.26028819,707.43,706.44,1.05434325]
[1735646984905,0.28270948,707.44,706.44,1.05434325]
[1735646985106,1.47727836,707.42,706.44,1.05434325]
[1735646986904,1.47727836,707.42,705.73,2.15261747]
[1735646986905,1.47727836,707.42,706.45,1.05434325]
[1735646988208,0.260282,707.41,706.44,1.05434325]
[1735646988807,0.260282,707.41,706.49,1.05434325]
[1735646989910,1.47727836,707.42,706.49,1.05434325]
[1735646990112,0.26028375,707.41,706.5,1.05434325]
[1735646991105,0.26028375,707.41,706.44,1.05434325]
[1735646991503,1.47727836,707.42,706.44,1.05434325]
[1735646992310,1.47727836,707.42,706.37,1.05434325]
[1735646993205,1.47727836,707.42,706.32,1.05434325]
[1735646994810,1.47727836,707.42,706.3,1.33750904]
[1735646996013,1.47727836,707.42,706.34,1.05434325]
[1735646998312,1.47727836,707.42,706.35,1.05434325]
[1735646999712,1.47727836,707.42,706.34,1.05434325]
[1735647000613,1.47727836,707.42,706.39,1.05434325]
[1735647001810,1.47727836,707.42,706.38,1.05434325]
[1735647003115,1.47727836,707.42,706.55,1.05434325]
[1735647004014,1.47727836,707.42,706.63,1.05434325]
[1735647004919,1.47727836,707.42,706.31,0.77059877]
[1735647004920,1.47727836,707.42,706.79,1.05434325]
[1735647006020,1.47727836,707.42,706.77,1.05434325]
[1735647006218,0.28270948,707.44,706.77,1.05434325]
[1735647006417,1.05909497,708.11,706.77,1.05434325]
[1735647006618,1.47657841,707.55,706.77,1.05434325]
[1735647006820,0.28244598,708.1,706.77,1.05434325]
[1735647007015,0.28244598,708.1,706.56,1.05434325]
[1735647007016,1.47651054,707.55,706.63,1.05434325]
[1735647007515,1.47658363,707.55,706.63,1.05434325]
[1735647008322,1.47658363,707.55,706.59,1.05434325]
[1735647009224,1.47658363,707.55,706.55,1.05434325]
[1735647010622,1.47658363,707.55,706.53,1.05434325]
[1735647011425,1.47658363,707.55,706.5,1.05434325]
[1735647012523,1.47658363,707.55,706.47,1.05434325]
[1735647013736,1.47658363,707.55,706.49,1.05434325]
[1735647015022,1.47658363,707.55,706.62,1.05434325]
[1735647015830,1.47658363,707.55,706.61,1.05434325]
[1735647017128,1.47658363,707.55,706.6,1.05434325]
[1735647018134,1.47658363,707.55,706.51,1.05434325]
[1735647019638,1.47658363,707.55,706.52,1.05434325]
[1735647020732,1.47658363,707.55,706.54,1.05434325]
[1735647021937,1.47658363,707.55,706.3,0.28316579]
[1735647022831,1.47658363,707.55,706.3,1.33750904]
[1735647024935,1.47658363,707.55,706.35,1.05434325]
[1735647026336,1.47658363,707.55,706.34,1.05434325]
[1735647027341,1.47658363,707.55,706.37,1.05434325]
[1735647028340,1.47658363,707.55,706.51,1.05434325]
[1735647029545,1.47658363,707.55,706.58,1.05434325]
[1735647030540,1.47658363,707.55,706.63,1.05434325]
[1735647031747,1.47658363,707.55,706.67,1.05434325]
[1735647033147,1.47658363,707.55,706.37,1.05434325]
[1735647034050,1.47658363,707.55,706.36,1.05434325]
[1735647035246,1.47658363,707.55,706.39,1.05434325]
[1735647036150,1.47658363,707.55,706.33,1.05434325]
[1735647037352,1.47658363,707.55,706.36,1.05434325]
[1735647038248,1.47658363,707.55,706.51,1.05434325]
[1735647039251,1.47658363,707.55,706.52,1.05434325]
[1735647040555,1.47658363,707.55,706.3,0.28316579]
[1735647041755,1.47658363,707.55,706.33,1.05434325]
[1735647042950,1.47658363,707.55,706.46,1.05434325]
[1735647044652,1.47658363,707.55,706.53,1.05434325]
[1735647047157,1.47658363,707.55,706.3,0.28316579]
[1735647047158,1.47658363,707.55,706.58,1.05434325]
[1735647048054,1.47658363,707.55,706.6,1.05434325]
[1735647050659,1.47658363,707.55,706.62,1.05434325]
[1735647051959,1.47658363,707.55,706.77,1.05434325]
[1735647053162,1.47658363,707.55,706.79,1.05434325]
[1735647054360,1.47658363,707.55,706.81,1.05434325]
[1735647055755,1.47658363,707.55,706.84,1.05434325]
[1735647059160,1.47658363,707.55,706.85,1.05434325]
[1735647060262,1.47658363,707.55,706.87,1.05434325]
[1735647062064,1.47658363,707.55,706.32,2.15261747]
[1735647062065,1.47658363,707.55,706.58,1.05434325]
[1735647063960,1.47658363,707.55,706.57,1.05434325]
[1735647064868,1.47658363,707.55,706.59,1.05434325]
[1735647065963,1.47658363,707.55,706.53,1.05434325]
[1735647067166,1.47658363,707.55,706.57,1.05434325]
[1735647072268,1.47658363,707.55,706.65,1.05434325]
[1735647073571,1.47658363,707.55,706.66,1.05434325]
[1735647074874,1.47658363,707.55,706.69,1.05434325]
[1735647076065,1.47658363,707.55,706.03,1.2652119]
[1735647076066,1.47658363,707.55,706.6,1.05434325]
[1735647077271,1.47658363,707.55,706.5,1.05434325]
[1735647077568,1.75924916,707.55,706.5,1.05434325]
[1735647078173,0.26025888,707.54,706.5,1.05434325]
[1735647078374,0.26025888,707.54,706.48,1.05434325]
[1735647078769,0.26027856,707.53,706.48,1.05434325]
[1735647078969,0.26027856,707.52,706.48,1.05434325]
[1735647079170,0.26027856,707.51,706.48,1.05434325]
[1735647079370,1.75924916,707.55,706.44,1.05434325]
[1735647079371,0.26027856,707.5,706.44,1.05434325]
[1735647079571,0.54296806,707.49,706.44,1.05434325]
[1735647079875,0.54297206,707.48,706.44,1.05434325]
[1735647080074,0.26027856,707.47,706.44,1.05434325]
[1735647080472,1.47722087,707.46,706.4,1.05434325]
[1735647080675,0.26027856,707.45,706.4,1.05434325]
[1735647081374,0.26030224,707.44,706.4,1.05434325]
[1735647081671,0.26030224,707.43,706.36,1.05434325]
[1735647081875,1.47722087,707.46,706.36,1.05434325]
[1735647081876,0.26030224,707.42,706.36,1.05434325]
[1735647082070,0.26030002,707.41,706.36,1.05434325]
[1735647082273,0.26030002,707.4,706.36,1.05434325]
[1735647082472,0.26030002,707.39,706.29,1.05434325]
[1735647082674,1.47722087,707.46,706.29,1.05434325]
[1735647082874,0.26030825,707.45,706.29,1.05434325]
[1735647083880,0.26030825,707.45,705.59,2.15261747]
[1735647083881,0.26034591,707.44,706.2,1.05434325]
[1735647084177,0.26034591,707.43,706.2,1.05434325]
[1735647084379,0.26034971,707.42,706.2,1.05434325]
[1735647084574,0.26034971,707.41,706.2,1.05434325]
[1735647084776,0.26034971,707.4,706.2,1.05434325]
[1735647084976,0.26034971,707.39,706.2,1.05434325]
[1735647085172,0.26034971,707.39,705.46,2.15261747]
[1735647085173,0.26034971,707.45,706.02,1.05434325]
[1735647086283,0.26034971,707.45,705.99,1.05434325]
[1735647086478,0.28271348,707.43,705.99,1.05434325]
[1735647086678,0.26034531,707.42,705.99,1.05434325]
[1735647087279,0.26034531,707.42,705.98,1.05434325]
[1735647087677,0.26034531,707.42,705.38,0.76785515]
[1735647088080,0.26034531,707.42,705.4,0.28352707]
[1735647088986,0.26034531,707.42,705.96,1.04993828]
[1735647089783,0.26033229,707.41,705.96,1.04993828]
[1735647089998,0.26033229,707.42,705.96,1.04993828]
[1735647090178,0.26033229,707.41,705.96,1.04993828]
[1735647090383,0.26033229,707.4,705.96,1.04993828]
[1735647090581,0.26033229,707.39,705.96,1.04993828]
[1735647090782,0.26033229,707.38,705.96,1.04993828]
[1735647090978,0.26033229,707.37,705.96,1.04993828]
[1735647091181,0.54307375,707.36,705.99,1.04993828]
[1735647091379,0.28274545,707.35,705.99,1.04993828]
[1735647091779,0.26029973,707.34,705.99,1.04993828]
[1735647092288,0.26029973,707.34,701.47,2.4503156]
[1735647092289,0.26029973,707.34,706.08,1.04993828]
[1735647093387,0.26029973,707.34,706.22,1.04993828]
[1735647094485,0.26029973,707.34,704.28,1.90387469]
[1735647094486,0.26029973,707.34,706.25,1.04993828]
[1735647094789,0.28274545,707.35,706.25,1.04993828]
[1735647095785,0.28274545,707.35,706.28,1.04993828]
[1735647095986,0.26028122,707.34,706.28,1.04993828]
[1735647096188,0.28274545,707.35,706.28,1.04993828]
[1735647096391,0.26027659,707.34,706.28,1.04993828]
[1735647096789,0.26027659,707.34,706.27,1.04993828]
[1735647097091,0.28274545,707.35,706.27,1.04993828]
[1735647097092,0.26028273,707.33,706.27,1.04993828]
[1735647097318,0.28274545,707.35,706.27,1.04993828]
[1735647097888,0.26028161,707.34,706.25,1.04993828]
[1735647098889,0.26028161,707.34,706.24,1.04993828]
[1735647099792,0.26030442,707.33,706.24,1.04993828]
[1735647099989,0.26030442,707.32,706.25,1.04993828]
[1735647100189,0.26030442,707.31,706.25,1.04993828]
[1735647100493,0.26030442,707.3,706.25,1.04993828]
[1735647100692,0.26030442,707.29,706.25,1.04993828]
[1735647100899,0.26030442,707.28,706.25,1.04993828]
[1735647101099,0.26030442,707.27,706.25,1.04993828]
[1735647101293,0.26030442,707.26,706.25,1.04993828]
[1735647101593,1.47739856,707.26,706.25,1.04993828]
[1735647102394,1.47739856,707.26,706.26,1.04993828]
[1735647103293,1.47739856,707.26,706.24,1.04993828]
[1735647106003,1.47739856,707.26,706.26,1.04993828]
[1735647107304,1.47739856,707.26,706.31,1.04993828]
[1735647108100,1.47739856,707.26,706.37,1.04993828]
[1735647109199,1.47739856,707.26,706.42,1.04993828]
[1735647109901,1.47739856,707.26,706.45,1.04993828]
[1735647111299,0.26029889,707.25,706.45,1.04993828]
[1735647111500,1.47739856,707.26,706.45,1.04993828]
[1735647111698,1.47739856,707.26,706.44,1.04993828]
[1735647111901,0.26029877,707.25,706.44,1.04993828]
[1735647112103,1.47739856,707.26,706.44,1.04993828]
[1735647112607,1.47739856,707.26,706.49,1.04993828]
[1735647113604,1.47739856,707.26,706.53,1.04993828]
[1735647114603,0.26029206,707.25,706.53,1.04993828]
[1735647115605,0.26029206,707.25,706.5,1.04993828]
[1735647115809,1.47739856,707.26,706.5,1.04993828]
[1735647116409,0.26030368,707.25,706.5,1.04993828]
[1735647116911,0.26030368,707.25,706.49,1.04993828]
[1735647117110,1.47739856,707.26,706.49,1.04993828]
[1735647117813,0.26033123,707.25,706.49,1.04993828]
[1735647118111,0.26033123,707.25,706.37,1.04993828]
[1735647119110,0.26033123,707.25,706.32,1.04993828]
[1735647120015,0.26033123,707.25,706.33,1.04993828]
[1735647121311,0.26033123,707.25,706.35,1.04993828]
[1735647121610,0.26032841,707.24,706.35,1.04993828]
[1735647121808,0.26032841,707.23,706.35,1.04993828]
[1735647122010,1.47739856,707.26,706.35,1.04993828]
[1735647122208,0.26034015,707.25,706.36,1.04993828]
[1735647123015,1.47739856,707.26,706.36,1.04993828]
[1735647123215,1.47739856,707.26,706.34,1.04993828]
[1735647123216,0.26034372,707.25,706.34,1.04993828]
[1735647124317,0.26034372,707.25,706.33,1.04993828]
[1735647125717,0.26034048,707.24,706.33,1.04993828]
[1735647125916,0.26034048,707.23,706.33,1.04993828]
[1735647126118,1.47739856,707.26,706.33,1.04993828]
[1735647126321,0.26033412,707.25,706.34,1.04993828]
[1735647128321,1.47739856,707.26,706.34,1.04993828]
[1735647128524,0.26034426,707.25,706.42,1.04993828]
[1735647128713,0.28278943,707.24,706.42,1.04993828]
[1735647128914,0.26034426,707.23,706.42,1.04993828]
[1735647129115,0.28279743,707.22,706.42,1.04993828]
[1735647129322,0.26034426,707.21,706.42,1.04993828]
[1735647129620,0.26034426,707.21,706.26,1.04993828]
[1735647129815,0.28280542,707.2,706.26,1.04993828]
[1735647130021,0.26034426,707.19,706.26,1.04993828]
[1735647130222,0.54315368,707.19,706.26,1.04993828]
[1735647130422,0.26034426,707.18,706.26,1.04993828]
[1735647130721,1.73808264,707.18,706.26,1.04993828]
[1735647130916,0.26034426,707.17,706.26,1.04993828]
[1735647131122,0.26034426,707.17,706.22,1.04993828]
[1735647131316,0.26036755,707.16,706.22,1.04993828]
[1735647131514,1.47773838,707.18,706.22,1.04993828]
[1735647131719,0.26036589,707.17,706.22,1.04993828]
[1735647132114,1.47773838,707.18,706.22,1.04993828]
[1735647132516,1.47773838,707.18,706.21,1.04993828]
[1735647133322,1.47773838,707.18,706.08,1.04993828]
[1735647134419,1.47773838,707.18,706.07,1.04993828]
[1735647138625,1.47773838,707.18,706.05,1.04993828]
[1735647139622,1.47773838,707.18,706.03,1.04993828]
[1735647140823,1.47773838,707.18,705.37,1.25992593]
[1735647140824,1.47773838,707.18,706.0,1.04993828]
[1735647141418,0.2603915,707.17,706.0,1.04993828]
[1735647142127,0.28282142,707.16,706.0,1.04993828]
[1735647142319,0.2603915,707.15,706.0,1.04993828]
[1735647142919,0.2603915,707.15,706.13,1.04993828]
[1735647143322,0.28282142,707.16,706.13,1.04993828]
[1735647143925,0.28282142,707.16,705.86,1.04993828]
[1735647145227,0.28282142,707.16,705.81,1.04993828]
[1735647145423,0.26044264,707.15,705.81,1.04993828]
[1735647146128,0.26044264,707.15,705.89,1.04993828]
[1735647147028,0.26045024,707.14,705.89,1.04993828]
[1735647147228,0.26045024,707.13,705.87,1.04993828]
[1735647147429,0.26045024,707.12,705.87,1.04993828]
[1735647147631,0.26045024,707.11,705.87,1.04993828]
[1735647147821,0.26045024,707.1,705.87,1.04993828]
[1735647148023,0.26045024,707.09,705.87,1.04993828]
[1735647148221,0.26045024,707.08,705.9,1.04993828]
[1735647148825,0.28285742,707.07,705.9,1.04993828]
[1735647149026,0.26045024,707.06,705.9,1.04993828]
[1735647149224,0.26045024,707.06,705.92,1.04993828]
[1735647149629,0.26045347,707.05,705.92,1.04993828]
[1735647149830,0.26045347,707.04,705.92,1.04993828]
[1735647150027,0.26045347,707.03,705.92,1.04993828]
[1735647150227,0.26045347,707.02,705.92,1.04993828]
[1735647150428,0.26045347,707.01,705.92,1.04993828]
[1735647150628,0.26045347,707.0,705.91,1.04993828]
[1735647150823,0.26045347,706.99,705.91,1.04993828]
[1735647151029,0.26045347,706.98,705.91,1.04993828]
[1735647151231,0.26045347,706.97,705.91,1.04993828]
[1735647151529,0.28285742,707.07,705.91,1.04993828]
[1735647151530,0.26045347,706.96,705.91,1.04993828]
[1735647151730,0.26045347,706.95,705.92,1.04993828]
[1735647151932,0.26045347,707.06,705.92,1.04993828]
[1735647152132,0.26046554,707.05,705.92,1.04993828]
[1735647152435,0.26046554,707.04,705.92,1.04993828]
[1735647152625,0.26046554,707.03,705.92,1.04993828]
[1735647152831,0.28285742,707.07,705.92,1.04993828]
[1735647153031,0.26046531,707.06,705.92,1.04993828]
[1735647153834,0.26046531,707.06,705.83,1.04993828]
[1735647154734,0.26046531,707.06,705.54,0.77004605]
[1735647154735,0.28285742,707.07,705.81,1.04993828]
[1735647154935,0.26046834,707.06,705.81,1.04993828]
[1735647155835,0.26046834,707.06,705.82,1.04993828]
[1735647157032,0.26046834,707.06,705.8,1.04993828]
[1735647158137,0.26046834,707.06,705.79,1.04993828]
[1735647159440,0.26046834,707.06,705.8,1.04993828]
[1735647160037,0.26048056,707.05,705.8,1.04993828]
[1735647160238,0.26048056,707.04,705.8,1.04993828]
[1735647160540,0.26048056,707.03,705.82,1.04993828]
[1735647160740,0.26048056,707.06,705.82,1.04993828]
[1735647161042,0.26048056,707.05,705.82,1.04993828]
[1735647161240,0.26048056,707.04,705.82,1.04993828]
[1735647161437,0.26048056,707.03,705.82,1.04993828]
[1735647161637,0.26048056,707.02,705.87,1.04993828]
[1735647161944,0.26048056,707.01,705.87,1.04993828]
[1735647162140,0.26048056,707.0,705.87,1.04993828]
[1735647162335,0.26048056,706.99,705.87,1.04993828]
[1735647162539,0.26048056,706.98,705.87,1.04993828]
[1735647162736,0.26046686,706.97,705.87,1.04993828]
[1735647162936,0.26046686,706.96,705.87,1.04993828]
[1735647163135,0.26046686,706.95,705.87,1.04993828]
[1735647163441,0.26046686,706.94,705.87,1.04993828]
[1735647163637,0.26046686,706.93,705.87,1.04993828]
[1735647163845,0.26046686,706.92,705.88,1.04993828]
[1735647164141,0.26046686,706.91,705.88,1.04993828]
[1735647164335,0.26046686,706.9,705.88,1.04993828]
[1735647164541,0.26046686,706.89,705.88,1.04993828]
[1735647164743,0.26046686,706.88,705.88,1.04993828]
[1735647164938,0.26046686,706.87,705.85,1.04993828]
[1735647165143,0.26046686,706.86,705.85,1.04993828]
[1735647165342,1.47822486,707.01,705.85,1.04993828]
[1735647165544,0.26046783,707.0,705.85,1.04993828]
[1735647165946,0.26046783,707.0,705.91,1.04993828]
[1735647167247,0.26046783,707.0,705.88,1.04993828]
[1735647168141,0.26046717,706.99,705.88,1.04993828]
[1735647168348,0.26046717,706.98,705.91,1.04993828]
[1735647168647,1.47822486,707.01,705.91,1.04993828]
[1735647169347,1.47822486,707.01,705.75,1.04993828]
[1735647170242,0.28288543,707.0,705.75,1.04993828]
[1735647170446,0.28288543,707.0,705.53,0.28347483]
[1735647170447,0.28288543,707.0,705.73,1.04993828]
[1735647171346,0.28288543,707.0,705.53,0.28347483]
[1735647171347,0.28288543,707.0,705.75,1.04993828]
[1735647172144,0.28288543,707.0,705.76,1.04993828]
[1735647173153,0.28288543,707.0,705.82,1.04993828]
[1735647174350,0.28288543,707.0,705.92,1.04993828]
[1735647175452,0.28288543,707.0,706.04,1.04993828]
[1735647176752,0.26042701,706.99,706.04,1.04993828]
[1735647176952,0.26042701,706.99,706.1,1.04993828]
[1735647177151,0.28288543,707.0,706.1,1.04993828]
[1735647178355,0.28288543,707.0,706.0,1.04993828]
[1735647179854,0.28288543,707.0,706.08,1.04993828]
[1735647186962,0.26041784,706.99,706.08,1.04993828]
[1735647190767,0.28288543,707.0,706.08,1.04993828]
[1735647192168,0.28288543,707.0,706.11,1.04993828]
[1735647194371,0.28288543,707.0,706.12,1.04993828]
[1735647195464,0.28288543,707.0,706.14,1.04993828]
[1735647196268,0.28288543,707.0,706.15,1.04993828]
[1735647196469,0.26041833,706.99,706.15,1.04993828]
[1735647196665,0.26041452,706.99,706.15,1.04993828]
[1735647197064,0.28288543,707.0,706.15,1.04993828]
[1735647197268,0.26041242,706.99,706.15,1.04993828]
[1735647197469,0.28288543,707.0,706.17,1.04993828]
[1735647198371,0.26041266,706.99,706.18,1.04993828]
[1735647198773,0.28288543,707.0,706.18,1.04993828]
[1735647199479,0.26041509,706.99,706.18,1.04993828]
[1735647201572,0.26041509,706.99,705.69,1.25992593]
[1735647201573,0.26041509,706.99,706.22,1.04993828]
[1735647202473,0.28288543,707.0,706.22,1.04993828]
[1735647202674,0.26042263,706.99,706.22,1.04993828]
[1735647202975,0.28288543,707.0,706.18,1.04993828]
[1735647204378,0.28288543,707.0,706.2,1.04993828]
[1735647205384,0.28288543,707.0,706.09,1.04993828]
[1735647207676,0.28288543,707.0,706.1,1.04993828]
[1735647208481,0.28288543,707.0,706.09,1.04993828]
[1735647209383,0.28288543,707.0,706.11,1.04993828]
[1735647212986,0.28288543,707.0,706.13,1.04993828]
[1735647213881,0.28288543,707.0,705.54,0.77095156]
[1735647213882,0.28288543,707.0,706.21,1.04993828]
[1735647214886,0.28288543,707.0,706.29,1.04993828]
[1735647215788,0.2604108,706.99,706.29,1.04993828]
[1735647218083,0.26042309,706.98,706.29,1.04993828]
[1735647218283,0.26042309,706.97,706.27,1.04993828]
[1735647218490,0.26042309,706.96,706.27,1.04993828]
[1735647218787,0.28288543,707.0,706.27,1.04993828]
[1735647218988,0.26042187,706.99,706.27,1.04993828]
[1735647219792,0.26042187,706.99,706.07,1.04993828]
[1735647219793,0.26042187,706.99,706.25,1.04993828]
[1735647220694,0.26042187,706.99,706.21,1.04993828]
[1735647221691,0.26042187,706.99,706.19,1.04993828]
[1735647222992,0.26042187,706.99,705.99,1.04993828]
[1735647222993,0.26042187,706.99,706.21,1.04993828]
[1735647223992,0.26042187,706.99,706.1,1.04993828]
[1735647224394,0.28289343,706.98,706.1,1.04993828]
[1735647224698,0.26042187,706.97,706.1,1.04993828]
[1735647224894,0.28290143,706.96,706.1,1.04993828]
[1735647225096,0.26042187,706.95,706.09,1.04993828]
[1735647226095,0.26045378,706.94,706.11,1.04993828]
[1735647226294,0.26045378,706.93,706.11,1.04993828]
[1735647226595,0.26045378,706.92,706.11,1.04993828]
[1735647226790,0.26045378,706.91,706.11,1.04993828]
[1735647227195,1.47818823,706.92,706.06,1.04993828]
[1735647228090,1.47818823,706.92,706.08,1.04993828]
[1735647228996,1.47818823,706.92,706.06,1.04993828]
[1735647229197,0.26046103,706.91,706.06,1.04993828]
[1735647229397,1.47818823,706.92,706.06,1.04993828]
[1735647229598,0.2604579,706.91,706.06,1.04993828]
[1735647230097,0.2604579,706.91,706.03,1.04993828]
[1735647231000,0.2604579,706.91,706.12,1.04993828]
[1735647231199,1.47818823,706.92,706.12,1.04993828]
[1735647231399,0.26045489,706.91,706.12,1.04993828]